[Event "Titled Tuesday Blitz April 18 Early 2023"]
[White "Aradhya, Garg"]
[Black "Demchenko, Anton"]
[WhiteFideId "25006746"]
[BlackFideId "4160258"]
[WhiteElo "2263"]
[BlackElo "2545"]
[Result "0-1"]
[Round "09"]
[TimeControl "180+2"]
[Date "2023.04.18"]
[WhiteClock "0:00:33"]
[BlackClock "0:00:11"]

1. d4 {[%clk 0:03:00]}  Nf6 {[%clk 0:02:57]} 2. c4 {[%clk 0:03:01]}  d6 {[%clk 0:02:57]} 3. Nc3 {[%clk 0:03:01]}  e5 {[%clk 0:02:56]} 4. Nf3 {[%clk 0:03:01]}  Nc6 {[%clk 0:02:57]} 5. dxe5 {[%clk 0:02:55]}  dxe5 {[%clk 0:02:58]} 6. Qxd8+ {[%clk 0:02:54]}  Kxd8 {[%clk 0:02:58]} 7. Bg5 {[%clk 0:02:54]}  Be6 {[%clk 0:02:59]} 8. O-O-O+ {[%clk 0:02:54]}  Kc8 {[%clk 0:02:59]} 9. e3 {[%clk 0:02:41]}  Nd7 {[%clk 0:02:58]} 10. Bh4 {[%clk 0:02:39]}  f6 {[%clk 0:02:59]} 11. Nd2 {[%clk 0:02:36]}  a5 {[%clk 0:02:55]} 12. f3 {[%clk 0:02:36]}  a4 {[%clk 0:02:49]} 13. a3 {[%clk 0:02:35]}  Nc5 {[%clk 0:02:46]} 14. Bf2 {[%clk 0:02:31]}  Na5 {[%clk 0:02:32]} 15. Kc2 {[%clk 0:02:24]}  Nab3 {[%clk 0:02:11]} 16. e4 {[%clk 0:02:18]}  c6 {[%clk 0:02:06]} 17. Nxb3 {[%clk 0:02:15]}  axb3+ {[%clk 0:02:03]} 18. Kb1 {[%clk 0:02:14]}  Be7 {[%clk 0:02:02]} 19. Be2 {[%clk 0:02:08]}  Kc7 {[%clk 0:01:52]} 20. h4 {[%clk 0:01:46]}  b6 {[%clk 0:01:41]} 21. h5 {[%clk 0:01:45]}  Nb7 {[%clk 0:01:38]} 22. h6 {[%clk 0:01:42]}  g5 {[%clk 0:01:37]} 23. Be3 {[%clk 0:01:33]}  Bc5 {[%clk 0:01:37]} 24. Bd2 {[%clk 0:01:33]}  Nd6 {[%clk 0:01:29]} 25. g3 {[%clk 0:01:32]}  Nxc4 {[%clk 0:01:27]} 26. Bc1 {[%clk 0:01:33]}  b5 {[%clk 0:01:16]} 27. f4 {[%clk 0:01:32]}  gxf4 {[%clk 0:01:16]} 28. gxf4 {[%clk 0:01:32]}  Rhg8 {[%clk 0:01:17]} 29. fxe5 {[%clk 0:01:21]}  fxe5 {[%clk 0:01:17]} 30. Rh5 {[%clk 0:01:17]}  Bf7 {[%clk 0:01:07]} 31. Rf5 {[%clk 0:01:15]}  Bg6 {[%clk 0:01:08]} 32. Rf6 {[%clk 0:01:09]}  Rgf8 {[%clk 0:00:41]} 33. Rxf8 {[%clk 0:01:08]}  Rxf8 {[%clk 0:00:29]} 34. a4 {[%clk 0:01:08]}  Nd6 {[%clk 0:00:19]} 35. axb5 {[%clk 0:01:07]}  Nxe4 {[%clk 0:00:19]} 36. Bd3 {[%clk 0:00:40]}  Nxc3+ {[%clk 0:00:19]} 37. bxc3 {[%clk 0:00:41]}  Rd8 {[%clk 0:00:15]} 38. Kb2 {[%clk 0:00:40]}  Rxd3 {[%clk 0:00:14]} 39. Re1 {[%clk 0:00:40]}  Bd6 {[%clk 0:00:12]} 40. bxc6 {[%clk 0:00:39]}  Kxc6 {[%clk 0:00:11]} 41. Kxb3 {[%clk 0:00:39]}  e4 {[%clk 0:00:12]} 42. Bb2 {[%clk 0:00:37]}  Rh3 {[%clk 0:00:11]} 43. Ra1 {[%clk 0:00:37]}  Bf7+ {[%clk 0:00:07]} 44. Kc2 {[%clk 0:00:36]}  Rh2+ {[%clk 0:00:07]} 45. Kb1 {[%clk 0:00:35]}  Rh1+ {[%clk 0:00:08]} 46. Kc2 {[%clk 0:00:35]}  Rxa1 {[%clk 0:00:07]} 47. Bxa1 {[%clk 0:00:36]}  Bf4 {[%clk 0:00:07]} 48. Kd1 {[%clk 0:00:35]}  Bxh6 {[%clk 0:00:07]} 49. Bb2 {[%clk 0:00:35]}  Bc4 {[%clk 0:00:08]} 50. Ba3 {[%clk 0:00:35]}  Kd5 {[%clk 0:00:08]} 51. Ke1 {[%clk 0:00:35]}  Bf4 {[%clk 0:00:08]} 52. Be7 {[%clk 0:00:34]}  Be5 {[%clk 0:00:09]} 53. Kd2 {[%clk 0:00:34]}  h5 {[%clk 0:00:09]} 54. Bg5 {[%clk 0:00:33]}  Bg3 {[%clk 0:00:08]} 55. Ke3 {[%clk 0:00:31]}  Bd3 {[%clk 0:00:09]} 56. Kd2 {[%clk 0:00:30]}  h4 {[%clk 0:00:09]} 57. Be3 {[%clk 0:00:30]}  h3 {[%clk 0:00:10]} 58. Bg1 {[%clk 0:00:31]}  h2 {[%clk 0:00:10]} 59. Bxh2 {[%clk 0:00:32]}  Bxh2 {[%clk 0:00:11]} 60. Ke3 {[%clk 0:00:32]}  Kc4 {[%clk 0:00:11]} 61. Kf2 {[%clk 0:00:31]}  Bf4 {[%clk 0:00:11]} 62. Kg2 {[%clk 0:00:31]}  Kxc3 {[%clk 0:00:12]} 63. Kh3 {[%clk 0:00:32]}  Be2 {[%clk 0:00:13]} 64. Kh4 {[%clk 0:00:31]}  Bf3 {[%clk 0:00:13]} 65. Kh3 {[%clk 0:00:31]}  e3 {[%clk 0:00:14]} 66. Kh4 {[%clk 0:00:32]}  e2 {[%clk 0:00:14]} 67. Kh3 {[%clk 0:00:32]}  Kd3 {[%clk 0:00:11]} 68. Kh4 {[%clk 0:00:33]}  e1=Q+ {[%clk 0:00:11]} 69. Kh3 {[%clk 0:00:33]}  Qh1# {[%clk 0:00:11]} 0-1


[Site "https://www.chess.com"]

[Event "Titled Tuesday Blitz April 18 Early 2023"]
[White "Sadhwani, Raunak"]
[Black "Karthik Rajaa"]
[WhiteFideId "35093487"]
[BlackFideId "25035215"]
[WhiteElo "2631"]
[BlackElo "2215"]
[Result "1-0"]
[Round "09"]
[TimeControl "180+2"]
[Date "2023.04.18"]
[WhiteClock "0:00:23"]
[BlackClock "0:00:02"]

1. Nf3 {[%clk 0:03:00]}  Nf6 {[%clk 0:02:59]} 2. b3 {[%clk 0:02:59]}  g6 {[%clk 0:03:00]} 3. Bb2 {[%clk 0:02:57]}  Bg7 {[%clk 0:03:00]} 4. g3 {[%clk 0:02:56]}  O-O {[%clk 0:03:00]} 5. Bg2 {[%clk 0:02:56]}  d6 {[%clk 0:03:00]} 6. d4 {[%clk 0:02:56]}  b5 {[%clk 0:03:01]} 7. O-O {[%clk 0:02:55]}  Bb7 {[%clk 0:03:01]} 8. Nbd2 {[%clk 0:02:56]}  Nbd7 {[%clk 0:03:01]} 9. c4 {[%clk 0:02:57]}  bxc4 {[%clk 0:03:02]} 10. Nxc4 {[%clk 0:02:58]}  a5 {[%clk 0:03:02]} 11. Rc1 {[%clk 0:02:57]}  c5 {[%clk 0:02:59]} 12. dxc5 {[%clk 0:02:40]}  Nxc5 {[%clk 0:02:59]} 13. Bd4 {[%clk 0:02:41]}  Ra6 {[%clk 0:02:32]} 14. Bxc5 {[%clk 0:02:40]}  dxc5 {[%clk 0:02:32]} 15. Nfe5 {[%clk 0:02:41]}  Bxg2 {[%clk 0:02:27]} 16. Qxd8 {[%clk 0:02:41]}  Rxd8 {[%clk 0:02:26]} 17. Kxg2 {[%clk 0:02:42]}  Ne4 {[%clk 0:02:20]} 18. Nd3 {[%clk 0:02:41]}  a4 {[%clk 0:02:11]} 19. Rc2 {[%clk 0:02:37]}  axb3 {[%clk 0:02:06]} 20. axb3 {[%clk 0:02:38]}  Rc8 {[%clk 0:02:02]} 21. Rfc1 {[%clk 0:02:36]}  Bh6 {[%clk 0:01:51]} 22. e3 {[%clk 0:02:33]}  Rd8 {[%clk 0:01:51]} 23. Nde5 {[%clk 0:02:19]}  Rb8 {[%clk 0:01:45]} 24. f3 {[%clk 0:01:37]}  Nd6 {[%clk 0:01:42]} 25. Nd7 {[%clk 0:01:32]}  Rxb3 {[%clk 0:01:31]} 26. f4 {[%clk 0:01:10]}  Nxc4 {[%clk 0:01:25]} 27. Rxc4 {[%clk 0:01:11]}  Ra2+ {[%clk 0:01:23]} 28. Kf3 {[%clk 0:01:07]}  Raa3 {[%clk 0:01:00]} 29. Re4 {[%clk 0:01:07]}  Rc3 {[%clk 0:00:42]} 30. Rxc3 {[%clk 0:01:01]}  Rxc3 {[%clk 0:00:43]} 31. Rxe7 {[%clk 0:01:02]}  Rd3 {[%clk 0:00:25]} 32. Re8+ {[%clk 0:00:53]}  Kg7 {[%clk 0:00:23]} 33. Nxc5 {[%clk 0:00:51]}  Rd2 {[%clk 0:00:20]} 34. g4 {[%clk 0:00:50]}  g5 {[%clk 0:00:19]} 35. h4 {[%clk 0:00:45]}  f6 {[%clk 0:00:10]} 36. hxg5 {[%clk 0:00:39]}  fxg5 {[%clk 0:00:10]} 37. f5 {[%clk 0:00:31]}  Kf7 {[%clk 0:00:09]} 38. Rh8 {[%clk 0:00:29]}  Kg7 {[%clk 0:00:06]} 39. Ra8 {[%clk 0:00:29]}  Rc2 {[%clk 0:00:04]} 40. Ra7+ {[%clk 0:00:29]}  Kg8 {[%clk 0:00:04]} 41. Ne6 {[%clk 0:00:29]}  Rc1 {[%clk 0:00:03]} 42. Ke4 {[%clk 0:00:23]}  Rf1 {[%clk 0:00:02]} 43. Ke5 {[%clk 0:00:23]} 1-0


[Site "https://www.chess.com"]

[Event "Titled Tuesday Blitz April 18 Early 2023"]
[White "Shimanov, Aleksandr"]
[Black "Molina, Roberto Junio Brito"]
[WhiteFideId "4198603"]
[BlackFideId "2109450"]
[WhiteElo "2631"]
[BlackElo "2376"]
[Result "1-0"]
[Round "09"]
[TimeControl "180+2"]
[Date "2023.04.18"]
[WhiteClock "0:00:17"]
[BlackClock "0:00:05"]

1. d4 {[%clk 0:03:00]}  c6 {[%clk 0:03:00]} 2. e4 {[%clk 0:02:59]}  d5 {[%clk 0:03:01]} 3. Nc3 {[%clk 0:03:00]}  dxe4 {[%clk 0:03:00]} 4. Nge2 {[%clk 0:03:00]}  Nf6 {[%clk 0:02:57]} 5. Ng3 {[%clk 0:03:00]}  Bg4 {[%clk 0:02:57]} 6. Be2 {[%clk 0:03:00]}  Bxe2 {[%clk 0:02:57]} 7. Qxe2 {[%clk 0:03:01]}  Qxd4 {[%clk 0:02:56]} 8. Bf4 {[%clk 0:03:00]}  Nbd7 {[%clk 0:02:55]} 9. Rd1 {[%clk 0:02:59]}  Qb4 {[%clk 0:02:55]} 10. O-O {[%clk 0:03:00]}  Nc5 {[%clk 0:02:13]} 11. Be5 {[%clk 0:02:44]}  Nfd7 {[%clk 0:02:07]} 12. a3 {[%clk 0:02:27]}  Qxb2 {[%clk 0:02:02]} 13. Rb1 {[%clk 0:02:23]}  Qxa3 {[%clk 0:02:00]} 14. Ra1 {[%clk 0:02:21]}  Qxa1 {[%clk 0:01:53]} 15. Rxa1 {[%clk 0:02:21]}  Nxe5 {[%clk 0:01:54]} 16. Ncxe4 {[%clk 0:02:16]}  Nxe4 {[%clk 0:01:47]} 17. Qxe4 {[%clk 0:02:17]}  Nd7 {[%clk 0:01:44]} 18. Rd1 {[%clk 0:01:49]}  e6 {[%clk 0:01:38]} 19. Nf5 {[%clk 0:01:48]}  O-O-O {[%clk 0:01:31]} 20. Nd4 {[%clk 0:01:37]}  Nf6 {[%clk 0:01:23]} 21. Qe2 {[%clk 0:01:33]}  Bc5 {[%clk 0:01:21]} 22. c3 {[%clk 0:01:34]}  Bxd4 {[%clk 0:01:14]} 23. cxd4 {[%clk 0:01:33]}  a6 {[%clk 0:01:11]} 24. Qb2 {[%clk 0:01:29]}  Rd7 {[%clk 0:01:11]} 25. h3 {[%clk 0:01:28]}  Rhd8 {[%clk 0:01:09]} 26. Rb1 {[%clk 0:01:29]}  g6 {[%clk 0:01:08]} 27. Qb6 {[%clk 0:01:27]}  Ne8 {[%clk 0:01:02]} 28. Qa7 {[%clk 0:01:25]}  Nd6 {[%clk 0:01:01]} 29. Qc5 {[%clk 0:01:07]}  Nb5 {[%clk 0:00:59]} 30. Qg5 {[%clk 0:01:06]}  h5 {[%clk 0:00:57]} 31. Qf6 {[%clk 0:01:04]}  Nxd4 {[%clk 0:00:55]} 32. Kh2 {[%clk 0:01:05]}  Nb5 {[%clk 0:00:54]} 33. Rb3 {[%clk 0:01:03]}  b6 {[%clk 0:00:50]} 34. Rb2 {[%clk 0:00:56]}  Kb7 {[%clk 0:00:50]} 35. Rc2 {[%clk 0:00:55]}  Rc8 {[%clk 0:00:50]} 36. f3 {[%clk 0:00:53]}  c5 {[%clk 0:00:47]} 37. g4 {[%clk 0:00:53]}  Nd4 {[%clk 0:00:43]} 38. Rd2 {[%clk 0:00:50]}  Rc6 {[%clk 0:00:40]} 39. Kg2 {[%clk 0:00:47]}  b5 {[%clk 0:00:32]} 40. Qe5 {[%clk 0:00:39]}  Rd5 {[%clk 0:00:30]} 41. Qf6 {[%clk 0:00:39]}  Rc7 {[%clk 0:00:30]} 42. Qh8 {[%clk 0:00:33]}  Rcd7 {[%clk 0:00:24]} 43. Qf8 {[%clk 0:00:27]}  c4 {[%clk 0:00:22]} 44. Ra2 {[%clk 0:00:25]}  Nc6 {[%clk 0:00:19]} 45. Kg3 {[%clk 0:00:24]}  c3 {[%clk 0:00:18]} 46. Qa3 {[%clk 0:00:24]}  b4 {[%clk 0:00:16]} 47. Qxa6+ {[%clk 0:00:24]}  Kc7 {[%clk 0:00:17]} 48. Qc4 {[%clk 0:00:22]}  Rd4 {[%clk 0:00:12]} 49. Qc5 {[%clk 0:00:22]}  b3 {[%clk 0:00:07]} 50. Ra7+ {[%clk 0:00:20]}  Kd8 {[%clk 0:00:07]} 51. Ra6 {[%clk 0:00:17]}  Ne5 {[%clk 0:00:05]} 52. Ra8# {[%clk 0:00:17]} 1-0


[Site "https://www.chess.com"]

[Event "Titled Tuesday Blitz April 18 Early 2023"]
[White "Drozdowski, Kacper"]
[Black "Djordjevic, Vuk"]
[WhiteFideId "1136720"]
[BlackFideId "902098"]
[WhiteElo "2497"]
[BlackElo "2452"]
[Result "0-1"]
[Round "09"]
[TimeControl "180+2"]
[Date "2023.04.18"]
[WhiteClock "0:00:05"]
[BlackClock "0:00:05"]

1. e4 {[%clk 0:03:00]}  e6 {[%clk 0:02:59]} 2. d4 {[%clk 0:03:01]}  d5 {[%clk 0:03:00]} 3. Nd2 {[%clk 0:03:01]}  Be7 {[%clk 0:02:59]} 4. Ngf3 {[%clk 0:03:01]}  Nf6 {[%clk 0:03:00]} 5. Bd3 {[%clk 0:03:00]}  c5 {[%clk 0:02:59]} 6. e5 {[%clk 0:02:59]}  Nfd7 {[%clk 0:02:59]} 7. c3 {[%clk 0:02:59]}  b6 {[%clk 0:02:58]} 8. O-O {[%clk 0:02:57]}  Ba6 {[%clk 0:02:58]} 9. Ne1 {[%clk 0:02:58]}  Qc8 {[%clk 0:02:57]} 10. Qg4 {[%clk 0:02:56]}  g6 {[%clk 0:02:55]} 11. f4 {[%clk 0:02:50]}  cxd4 {[%clk 0:02:43]} 12. cxd4 {[%clk 0:02:48]}  Nc6 {[%clk 0:02:44]} 13. Bxa6 {[%clk 0:02:34]}  Qxa6 {[%clk 0:02:42]} 14. Ndf3 {[%clk 0:02:34]}  Qc4 {[%clk 0:02:26]} 15. Be3 {[%clk 0:02:31]}  Qe2 {[%clk 0:02:23]} 16. Bf2 {[%clk 0:02:26]}  Qxb2 {[%clk 0:02:22]} 17. Nd3 {[%clk 0:02:26]}  Qa3 {[%clk 0:02:12]} 18. Rfd1 {[%clk 0:02:26]}  Rc8 {[%clk 0:02:06]} 19. Qh3 {[%clk 0:02:21]}  O-O {[%clk 0:01:43]} 20. Bh4 {[%clk 0:02:11]}  Bxh4 {[%clk 0:01:34]} 21. Qxh4 {[%clk 0:02:12]}  Qe7 {[%clk 0:01:23]} 22. Qh6 {[%clk 0:02:11]}  f6 {[%clk 0:01:22]} 23. Rac1 {[%clk 0:02:04]}  Nb4 {[%clk 0:01:00]} 24. Rxc8 {[%clk 0:02:02]}  Rxc8 {[%clk 0:00:59]} 25. exf6 {[%clk 0:01:53]}  Nxf6 {[%clk 0:00:57]} 26. Nde5 {[%clk 0:01:43]}  Nxa2 {[%clk 0:00:46]} 27. Ng5 {[%clk 0:01:42]}  Nc3 {[%clk 0:00:42]} 28. Re1 {[%clk 0:01:42]}  Nce4 {[%clk 0:00:38]} 29. Rf1 {[%clk 0:01:25]}  b5 {[%clk 0:00:31]} 30. Nxe4 {[%clk 0:01:16]}  Nxe4 {[%clk 0:00:28]} 31. Qh3 {[%clk 0:01:02]}  b4 {[%clk 0:00:19]} 32. Qd3 {[%clk 0:01:01]}  a5 {[%clk 0:00:17]} 33. Qb5 {[%clk 0:01:00]}  Qa7 {[%clk 0:00:17]} 34. Nf3 {[%clk 0:00:56]}  Nc3 {[%clk 0:00:10]} 35. Qd3 {[%clk 0:00:49]}  b3 {[%clk 0:00:11]} 36. Qe3 {[%clk 0:00:48]}  Qe7 {[%clk 0:00:07]} 37. Qd2 {[%clk 0:00:43]}  a4 {[%clk 0:00:06]} 38. f5 {[%clk 0:00:39]}  Ne4 {[%clk 0:00:05]} 39. Qa5 {[%clk 0:00:38]}  exf5 {[%clk 0:00:05]} 40. Qxa4 {[%clk 0:00:37]}  Qb7 {[%clk 0:00:05]} 41. Rb1 {[%clk 0:00:31]}  b2 {[%clk 0:00:05]} 42. Qa3 {[%clk 0:00:31]}  Rb8 {[%clk 0:00:06]} 43. h4 {[%clk 0:00:27]}  Qb4 {[%clk 0:00:05]} 44. Qa6 {[%clk 0:00:22]}  Qb6 {[%clk 0:00:05]} 45. Qa3 {[%clk 0:00:19]}  Nd2 {[%clk 0:00:05]} 46. Nxd2 {[%clk 0:00:16]}  Qxd4+ {[%clk 0:00:05]} 47. Kh2 {[%clk 0:00:15]}  Qf4+ {[%clk 0:00:05]} 48. Qg3 {[%clk 0:00:14]}  Qxg3+ {[%clk 0:00:04]} 49. Kxg3 {[%clk 0:00:14]}  Rb4 {[%clk 0:00:04]} 50. Kf3 {[%clk 0:00:13]}  Kf7 {[%clk 0:00:03]} 51. g3 {[%clk 0:00:13]}  Kf6 {[%clk 0:00:03]} 52. Ke3 {[%clk 0:00:14]}  Ke5 {[%clk 0:00:03]} 53. Nf3+ {[%clk 0:00:14]}  Kd6 {[%clk 0:00:04]} 54. Nd4 {[%clk 0:00:14]}  Kc5 {[%clk 0:00:04]} 55. Nc2 {[%clk 0:00:12]}  Rb3+ {[%clk 0:00:04]} 56. Kd2 {[%clk 0:00:12]}  Rxg3 {[%clk 0:00:05]} 57. Rxb2 {[%clk 0:00:12]}  Rg4 {[%clk 0:00:05]} 58. Rb8 {[%clk 0:00:11]}  Rxh4 {[%clk 0:00:05]} 59. Rc8+ {[%clk 0:00:12]}  Kd6 {[%clk 0:00:06]} 60. Kd3 {[%clk 0:00:11]}  g5 {[%clk 0:00:06]} 61. Nd4 {[%clk 0:00:11]}  Rh3+ {[%clk 0:00:05]} 62. Ke2 {[%clk 0:00:11]}  f4 {[%clk 0:00:05]} 63. Re8 {[%clk 0:00:11]}  h6 {[%clk 0:00:05]} 64. Nf5+ {[%clk 0:00:11]}  Kc5 {[%clk 0:00:05]} 65. Rc8+ {[%clk 0:00:11]}  Kb4 {[%clk 0:00:05]} 66. Kd2 {[%clk 0:00:12]}  h5 {[%clk 0:00:04]} 67. Nd4 {[%clk 0:00:11]}  g4 {[%clk 0:00:04]} 68. Rf8 {[%clk 0:00:11]}  f3 {[%clk 0:00:04]} 69. Nc2+ {[%clk 0:00:11]}  Kc5 {[%clk 0:00:04]} 70. Ne3 {[%clk 0:00:11]}  Rh2+ {[%clk 0:00:04]} 71. Kd3 {[%clk 0:00:12]}  f2 {[%clk 0:00:04]} 72. Rf5 {[%clk 0:00:12]}  g3 {[%clk 0:00:05]} 73. Rxd5+ {[%clk 0:00:13]}  Kc6 {[%clk 0:00:05]} 74. Rf5 {[%clk 0:00:13]}  h4 {[%clk 0:00:05]} 75. Ke2 {[%clk 0:00:12]}  Rh1 {[%clk 0:00:05]} 76. Rf6+ {[%clk 0:00:11]}  Kd7 {[%clk 0:00:04]} 77. Rf4 {[%clk 0:00:08]}  Re1+ {[%clk 0:00:04]} 78. Kd2 {[%clk 0:00:09]}  Rxe3 {[%clk 0:00:04]} 79. Kxe3 {[%clk 0:00:09]}  h3 {[%clk 0:00:04]} 80. Rxf2 {[%clk 0:00:10]}  h2 {[%clk 0:00:03]} 81. Rf7+ {[%clk 0:00:10]}  Ke6 {[%clk 0:00:03]} 82. Rh7 {[%clk 0:00:10]}  g2 {[%clk 0:00:04]} 83. Rh6+ {[%clk 0:00:10]}  Ke5 {[%clk 0:00:03]} 84. Rh5+ {[%clk 0:00:10]}  Kf6 {[%clk 0:00:04]} 85. Rxh2 {[%clk 0:00:10]}  g1=Q+ {[%clk 0:00:04]} 86. Rf2+ {[%clk 0:00:10]}  Ke5 {[%clk 0:00:05]} 87. Kf3 {[%clk 0:00:11]}  Qd1+ {[%clk 0:00:05]} 88. Ke3 {[%clk 0:00:11]}  Qd4+ {[%clk 0:00:05]} 89. Kf3 {[%clk 0:00:12]}  Qd3+ {[%clk 0:00:05]} 90. Kg2 {[%clk 0:00:12]}  Ke4 {[%clk 0:00:05]} 91. Rf1 {[%clk 0:00:12]}  Qd2+ {[%clk 0:00:05]} 92. Rf2 {[%clk 0:00:12]}  Qg5+ {[%clk 0:00:05]} 93. Kf1 {[%clk 0:00:12]}  Ke3 {[%clk 0:00:06]} 94. Re2+ {[%clk 0:00:13]}  Kd3 {[%clk 0:00:06]} 95. Rf2 {[%clk 0:00:13]}  Qg4 {[%clk 0:00:07]} 96. Rf8 {[%clk 0:00:13]}  Qh3+ {[%clk 0:00:06]} 97. Kg1 {[%clk 0:00:13]}  Qg4+ {[%clk 0:00:06]} 98. Kf1 {[%clk 0:00:13]}  Qb4 {[%clk 0:00:05]} 99. Rf3+ {[%clk 0:00:13]}  Ke4 {[%clk 0:00:05]} 100. Kg2 {[%clk 0:00:13]}  Qd2+ {[%clk 0:00:05]} 101. Rf2 {[%clk 0:00:13]}  Qd5 {[%clk 0:00:05]} 102. Rf8 {[%clk 0:00:11]}  Ke3+ {[%clk 0:00:04]} 103. Kg1 {[%clk 0:00:09]}  Qd1+ {[%clk 0:00:02]} 104. Kg2 {[%clk 0:00:09]}  Qe2+ {[%clk 0:00:02]} 105. Kg3 {[%clk 0:00:08]}  Qe1+ {[%clk 0:00:03]} 106. Kg2 {[%clk 0:00:09]}  Qd2+ {[%clk 0:00:03]} 107. Kg1 {[%clk 0:00:08]}  Qd1+ {[%clk 0:00:03]} 108. Kg2 {[%clk 0:00:08]}  Qg4+ {[%clk 0:00:02]} 109. Kf1 {[%clk 0:00:09]}  Qc4+ {[%clk 0:00:03]} 110. Kg2 {[%clk 0:00:07]}  Qd5+ {[%clk 0:00:03]} 111. Kg1 {[%clk 0:00:05]}  Qc6 {[%clk 0:00:03]} 112. Rg8 {[%clk 0:00:04]}  Ke2 {[%clk 0:00:03]} 113. Rf8 {[%clk 0:00:04]}  Qc5+ {[%clk 0:00:03]} 114. Kg2 {[%clk 0:00:04]}  Qxf8 {[%clk 0:00:03]} 115. Kg3 {[%clk 0:00:04]}  Qf5 {[%clk 0:00:03]} 116. Kh4 {[%clk 0:00:05]}  Qg6 {[%clk 0:00:04]} 117. Kh3 {[%clk 0:00:05]}  Kf3 {[%clk 0:00:05]} 118. Kh2 {[%clk 0:00:05]}  Qg2# {[%clk 0:00:05]} 0-1


[Site "https://www.chess.com"]

[Event "Titled Tuesday Blitz April 18 Early 2023"]
[White "O`Gorman, Tom"]
[Black "Kushko, Dmitriy"]
[WhiteFideId "2508249"]
[BlackFideId "14162261"]
[WhiteElo "2271"]
[BlackElo "2230"]
[Result "0-1"]
[Round "09"]
[TimeControl "180+2"]
[Date "2023.04.18"]
[WhiteClock "0:00:16"]
[BlackClock "0:00:08"]

1. e4 {[%clk 0:03:00]}  g6 {[%clk 0:02:59]} 2. d4 {[%clk 0:02:57]}  Bg7 {[%clk 0:03:00]} 3. Nc3 {[%clk 0:02:57]}  d6 {[%clk 0:03:00]} 4. f4 {[%clk 0:02:57]}  a6 {[%clk 0:03:00]} 5. Nf3 {[%clk 0:02:57]}  b5 {[%clk 0:03:00]} 6. a3 {[%clk 0:02:56]}  Nd7 {[%clk 0:02:59]} 7. Bd3 {[%clk 0:02:53]}  c5 {[%clk 0:02:59]} 8. Be3 {[%clk 0:02:52]}  Bb7 {[%clk 0:02:58]} 9. e5 {[%clk 0:02:51]}  cxd4 {[%clk 0:02:52]} 10. Bxd4 {[%clk 0:02:44]}  dxe5 {[%clk 0:02:38]} 11. fxe5 {[%clk 0:02:36]}  Bxf3 {[%clk 0:02:30]} 12. Qxf3 {[%clk 0:02:34]}  Bxe5 {[%clk 0:02:26]} 13. Qf2 {[%clk 0:02:14]}  Ngf6 {[%clk 0:02:22]} 14. O-O {[%clk 0:02:14]}  Bxd4 {[%clk 0:02:21]} 15. Qxd4 {[%clk 0:02:15]}  Qb6 {[%clk 0:02:21]} 16. Qxb6 {[%clk 0:02:14]}  Nxb6 {[%clk 0:02:22]} 17. Rae1 {[%clk 0:02:13]}  Kf8 {[%clk 0:02:14]} 18. a4 {[%clk 0:02:03]}  b4 {[%clk 0:02:07]} 19. a5 {[%clk 0:02:02]}  bxc3 {[%clk 0:01:22]} 20. axb6 {[%clk 0:02:02]}  Rb8 {[%clk 0:01:10]} 21. bxc3 {[%clk 0:01:48]}  Rxb6 {[%clk 0:01:10]} 22. Rb1 {[%clk 0:01:48]}  Rc6 {[%clk 0:01:05]} 23. Rb7 {[%clk 0:01:40]}  Rxc3 {[%clk 0:00:38]} 24. Re1 {[%clk 0:01:07]}  e6 {[%clk 0:00:33]} 25. Ra7 {[%clk 0:00:54]}  Kg7 {[%clk 0:00:19]} 26. Rxe6 {[%clk 0:00:53]}  Ra3 {[%clk 0:00:07]} 27. Ree7 {[%clk 0:00:53]}  Rf8 {[%clk 0:00:08]} 28. Bc4 {[%clk 0:00:47]}  Ng4 {[%clk 0:00:08]} 29. Rxf7+ {[%clk 0:00:43]}  Rxf7 {[%clk 0:00:08]} 30. Rxf7+ {[%clk 0:00:44]}  Kh6 {[%clk 0:00:09]} 31. h3 {[%clk 0:00:25]}  Ne5 {[%clk 0:00:08]} 32. Rf4 {[%clk 0:00:21]}  Ra4 {[%clk 0:00:08]} 33. Rh4+ {[%clk 0:00:16]}  Kg7 {[%clk 0:00:08]} 0-1


[Site "https://www.chess.com"]

[Event "Titled Tuesday Blitz April 18 Early 2023"]
[White "Galchenko, Matvey"]
[Black "Girya, Olga"]
[WhiteFideId "24175480"]
[BlackFideId "4195752"]
[WhiteElo "2423"]
[BlackElo "2263"]
[Result "1-0"]
[Round "09"]
[TimeControl "180+2"]
[Date "2023.04.18"]
[WhiteClock "0:00:46"]
[BlackClock "0:00:01"]

1. f4 {[%clk 0:03:00]}  d5 {[%clk 0:02:59]} 2. Nf3 {[%clk 0:02:59]}  g6 {[%clk 0:02:55]} 3. g3 {[%clk 0:02:59]}  Bg7 {[%clk 0:02:56]} 4. Bg2 {[%clk 0:03:00]}  Nd7 {[%clk 0:02:56]} 5. O-O {[%clk 0:03:01]}  c6 {[%clk 0:02:56]} 6. d3 {[%clk 0:03:02]}  e5 {[%clk 0:02:52]} 7. Nc3 {[%clk 0:03:00]}  Ne7 {[%clk 0:02:25]} 8. e4 {[%clk 0:03:00]}  dxe4 {[%clk 0:02:18]} 9. dxe4 {[%clk 0:02:59]}  O-O {[%clk 0:02:14]} 10. f5 {[%clk 0:02:43]}  gxf5 {[%clk 0:02:06]} 11. Nh4 {[%clk 0:02:43]}  f4 {[%clk 0:02:01]} 12. gxf4 {[%clk 0:02:41]}  exf4 {[%clk 0:01:53]} 13. Qh5 {[%clk 0:02:34]}  Nf6 {[%clk 0:01:43]} 14. Qg5 {[%clk 0:02:33]}  Ng6 {[%clk 0:01:16]} 15. Nf5 {[%clk 0:02:28]}  Bxf5 {[%clk 0:01:16]} 16. Qxf5 {[%clk 0:02:24]}  Qb6+ {[%clk 0:01:08]} 17. Kh1 {[%clk 0:02:24]}  Nh4 {[%clk 0:00:55]} 18. Qxf4 {[%clk 0:02:21]}  Nxg2 {[%clk 0:00:55]} 19. Kxg2 {[%clk 0:02:22]}  Rae8 {[%clk 0:00:41]} 20. Rb1 {[%clk 0:02:04]}  Re6 {[%clk 0:00:35]} 21. Be3 {[%clk 0:02:03]}  Qb4 {[%clk 0:00:28]} 22. a3 {[%clk 0:01:40]}  Qe7 {[%clk 0:00:27]} 23. Qf5 {[%clk 0:01:35]}  Re5 {[%clk 0:00:25]} 24. Qf3 {[%clk 0:01:26]}  Nxe4 {[%clk 0:00:24]} 25. Nxe4 {[%clk 0:01:26]}  Rxe4 {[%clk 0:00:24]} 26. Bc5 {[%clk 0:01:12]}  Qxc5 {[%clk 0:00:01]} 27. Qxe4 {[%clk 0:01:12]}  f5 {[%clk 0:00:01]} 28. Qe6+ {[%clk 0:00:58]}  Kh8 {[%clk 0:00:02]} 29. Rf2 {[%clk 0:00:59]}  Rg8 {[%clk 0:00:01]} 30. b4 {[%clk 0:00:46]} 1-0


[Site "https://www.chess.com"]